[Event "Chess Festival Groningen 2023 | A"]
[Site "Groningen, Netherlands"]
[Date "2023.12.23"]
[Round "3.24"]
[White "Smeets, Kobe"]
[Black "Francs, Marats"]
[Result "1-0"]
[TimeControl "90min/40moves + 30min + 30sec/move"]
[WhiteElo "2239"]
[BlackElo "1990"]

1. e4 {[%clk 01:30:59]} {[%emt 00:00:32]} e5 {[%clk 01:30:26]} {[%emt
00:00:13]} 2. Nf3 {[%clk 01:31:16]} {[%emt 00:00:11]} Nc6 {[%clk 01:30:38]}
{[%emt 00:00:10]} 3. Bb5 {[%clk 01:31:39]} {[%emt 00:00:22]} Nf6 {[%clk
01:30:11]} {[%emt 00:00:41]} 4. d3 {[%clk 01:32:05]} {[%emt 00:00:13]} Bc5
{[%clk 01:30:34]} {[%emt 00:00:04]} 5. c3 {[%clk 01:32:31]} {[%emt 00:00:14]}
O-O {[%clk 01:30:38]} {[%emt 00:00:14]} 6. O-O {[%clk 01:32:53]} {[%emt
00:00:13]} Re8 {[%clk 01:30:11]} {[%emt 00:01:19]} 7. Bg5 {[%clk 01:33:17]} a6
{[%clk 01:28:50]} {[%emt 00:01:26]} 8. Ba4 {[%clk 01:33:22]} {[%emt 00:00:46]}
h6 {[%clk 01:29:08]} {[%emt 00:00:21]} 9. Bh4 {[%clk 01:33:45]} g5 {[%clk
01:29:03]} {[%emt 00:00:13]} 10. Bg3 {[%clk 01:34:04]} {[%emt 00:00:34]} b5
{[%clk 01:29:18]} {[%emt 00:00:10]} 11. Bb3 {[%clk 01:34:24]} d6 {[%clk
01:29:32]} {[%emt 00:00:10]} 12. Re1 {[%clk 01:32:37]} {[%emt 00:02:14]} Bb6
{[%clk 01:28:18]} {[%emt 00:01:44]} 13. Nbd2 {[%clk 01:31:36]} {[%emt
00:01:48]} Ne7 {[%clk 01:27:01]} {[%emt 00:01:30]} 14. a4 {[%clk 01:23:53]}
{[%emt 00:08:14]} Rb8 {[%clk 01:26:18]} {[%emt 00:01:13]} 15. Nf1 {[%clk
01:17:18]} {[%emt 00:07:08]} Ng6 {[%clk 01:17:51]} {[%emt 00:08:54]} 16. h4
{[%clk 01:04:48]} {[%emt 00:13:00]} g4 {[%clk 01:01:20]} {[%emt 00:17:14]} 17.
N3h2 {[%clk 01:05:06]} {[%emt 00:00:04]} Nh5 {[%clk 00:50:44]} {[%emt
00:11:01]} 18. Nxg4 {[%clk 00:54:04]} {[%emt 00:11:34]} Nxg3 {[%clk 00:46:59]}
{[%emt 00:04:29]} 19. Qf3 {[%clk 00:41:05]} {[%emt 00:13:12]} Bxg4 {[%clk
00:31:47]} {[%emt 00:15:40]} 20. Qxg4 {[%clk 00:38:01]} {[%emt 00:03:35]} Qf6
{[%clk 00:28:05]} {[%emt 00:04:24]} 21. Qxg3 {[%clk 00:38:08]} {[%emt
00:00:10]} Kh8 {[%clk 00:25:06]} {[%emt 00:03:30]} 22. Ne3 {[%clk 00:33:02]}
{[%emt 00:05:36]} Bxe3 {[%clk 00:10:41]} {[%emt 00:14:56]} 23. Qxe3 {[%clk
00:23:48]} {[%emt 00:09:43]} Nf4 {[%clk 00:07:40]} {[%emt 00:03:31]} 24. g3
{[%clk 00:17:14]} {[%emt 00:07:04]} Rg8 {[%clk 00:07:56]} {[%emt 00:00:33]} 25.
Kf1 {[%clk 00:11:26]} {[%emt 00:05:59]} bxa4 {[%clk 00:07:46]} {[%emt
00:00:40]} 26. Bxa4 {[%clk 00:11:05]} {[%emt 00:01:04]} Rxb2 {[%clk 00:06:48]}
{[%emt 00:01:14]} 27. Rab1 {[%clk 00:07:46]} {[%emt 00:04:02]} Nxd3 {[%clk
00:05:49]} {[%emt 00:01:17]} 28. Rxb2 {[%clk 00:08:10]} {[%emt 00:00:37]} Nxb2
{[%clk 00:06:15]} 29. Bb3 {[%clk 00:05:45]} {[%emt 00:02:26]} a5 {[%clk
00:05:42]} {[%emt 00:01:03]} 30. Rb1 {[%clk 00:05:02]} {[%emt 00:01:14]} a4
{[%clk 00:05:52]} {[%emt 00:00:47]} 31. Rxb2 {[%clk 00:04:34]} {[%emt
00:00:30]} axb3 {[%clk 00:06:18]} {[%emt 00:00:13]} 32. Rxb3 {[%clk 00:04:26]}
{[%emt 00:00:30]} Rg4 {[%clk 00:05:15]} {[%emt 00:01:33]} 33. Rb7 {[%clk
00:03:30]} {[%emt 00:01:48]} Qg6 {[%clk 00:04:48]} {[%emt 00:00:35]} 34. Rxc7
{[%clk 00:03:32]} {[%emt 00:00:44]} Rxe4 {[%clk 00:05:05]} {[%emt 00:00:10]} 35.
Qf3 {[%clk 00:03:49]} {[%emt 00:00:09]} f5 {[%clk 00:03:05]} {[%emt 00:02:50]}
36. Qd3 {[%clk 00:03:05]} {[%emt 00:01:06]} Qg4 {[%clk 00:03:09]} {[%emt
00:00:09]} 37. Kg2 {[%clk 00:03:28]} {[%emt 00:00:05]} Re2 {[%clk 00:02:39]}
{[%emt 00:00:55]} 38. Rc4 {[%clk 00:01:41]} {[%emt 00:02:38]} f4 {[%clk
00:02:27]} {[%emt 00:00:21]} 39. Rc7 {[%clk 00:01:20]} {[%emt 00:01:21]} f3+
{[%clk 00:01:12]} {[%emt 00:01:16]} 40. Qxf3 {[%clk 00:01:42]} {[%emt
00:00:34]} Qxf3+ {[%clk 00:01:31]} {[%emt 00:00:08]} 41. Kxf3 {[%clk 00:02:11]}
Rc2 {[%clk 00:00:31]} {[%emt 00:01:07]} 42. Rc6 {[%clk 00:21:34]} {[%emt
00:11:06]} Rd2 {[%clk 00:26:35]} {[%emt 00:04:53]} 43. Ke3 {[%clk 00:19:31]}
{[%emt 00:02:08]} Rd1 {[%clk 00:25:31]} {[%emt 00:01:32]} 44. Ke2 {[%clk
00:16:50]} {[%emt 00:03:35]} Rd5 {[%clk 00:25:47]} {[%emt 00:00:05]} 45. c4
{[%clk 00:17:06]} {[%emt 00:00:08]} Rd4 {[%clk 00:25:50]} {[%emt 00:00:19]} 46.
c5 {[%clk 00:11:28]} {[%emt 00:06:10]} dxc5 {[%clk 00:25:22]} {[%emt 00:00:54]}
47. Rxc5 {[%clk 00:11:57]} {[%emt 00:00:34]} Re4+ {[%clk 00:25:19]} {[%emt
00:00:09]} 48. Kf3 {[%clk 00:12:22]} Re1 {[%clk 00:25:35]} {[%emt 00:00:13]} 49.
Rc6 {[%clk 00:06:04]} {[%emt 00:07:16]} Kg7 {[%clk 00:25:24]} {[%emt 00:00:12]}
50. h5 {[%clk 00:03:10]} {[%emt 00:03:23]} Rh1 {[%clk 00:24:02]} {[%emt
00:02:00]} 51. Kg4 {[%clk 00:03:31]} {[%emt 00:00:04]} Rf1 {[%clk 00:24:07]}
{[%emt 00:00:58]} 52. f3 {[%clk 00:03:48]} Re1 {[%clk 00:24:08]} {[%emt
00:00:08]} 53. Rc7+ {[%clk 00:03:16]} {[%emt 00:01:05]} Kg8 {[%clk 00:23:58]}
{[%emt 00:00:35]} 54. Kf5 {[%clk 00:01:38]} {[%emt 00:02:09]} Kf8 {[%clk
00:23:12]} {[%emt 00:01:15]} 55. Kf6 {[%clk 00:01:43]} {[%emt 00:00:51]} Kg8
{[%clk 00:22:54]} {[%emt 00:00:40]} 56. Kg6 {[%clk 00:01:17]} {[%emt 00:00:38]}
Kf8 {[%clk 00:23:18]} {[%emt 00:00:13]} 57. Rf7+ {[%clk 00:01:19]} {[%emt
00:00:21]} Kg8 {[%clk 00:23:03]} {[%emt 00:00:59]} 58. Rg7+ {[%clk 00:01:02]}
{[%emt 00:00:36]} Kf8 {[%clk 00:23:25]} {[%emt 00:00:07]} 59. Kxh6 {[%clk
00:01:03]} {[%emt 00:01:03]} Rf1 {[%clk 00:23:08]} {[%emt 00:00:15]} 60. g4
{[%clk 00:01:11]} {[%emt 00:00:19]} Rxf3 {[%clk 00:23:30]} {[%emt 00:00:32]} 61.
g5 {[%clk 00:01:24]} e4 {[%clk 00:23:43]} {[%emt 00:00:15]} 62. g6 {[%clk
00:01:28]} {[%emt 00:00:49]} e3 {[%clk 00:23:52]} 63. Ra7 {[%clk 00:01:30]}
{[%emt 00:00:21]} Rg3 {[%clk 00:24:00]} {[%emt 00:00:47]} 64. g7+ {[%clk
00:01:31]} {[%emt 00:00:07]} Ke8 {[%clk 00:24:22]} {[%emt 00:00:09]} 65. Ra8+
{[%clk 00:01:46]} {[%emt 00:00:11]} Kf7 {[%clk 00:23:11]} {[%emt 00:02:04]} 66.
Rf8+ {[%clk 00:02:13]} 1-0

[Event "Chess Festival Groningen 2023 | A"]
[Site "Groningen, Netherlands"]
[Date "2023.12.23"]
[Round "3.25"]
[White "Spit, Vincent"]
[Black "Kanyamarala, Trisha"]
[Result "0-1"]
[TimeControl "90min/40moves + 30min + 30sec/move"]
[WhiteElo "2076"]
[BlackElo "2184"]

1. e4 {[%clk 01:30:53]} c5 {[%clk 01:30:44]} {[%emt 00:00:29]} 2. Nf3 {[%clk
01:31:11]} d6 {[%clk 01:31:04]} {[%emt 00:00:14]} 3. d4 {[%clk 01:31:31]}
{[%emt 00:00:05]} cxd4 {[%clk 01:31:25]} {[%emt 00:00:09]} 4. Nxd4 {[%clk
01:31:56]} {[%emt 00:00:12]} Nf6 {[%clk 01:31:45]} 5. Nc3 {[%clk 01:32:19]}
{[%emt 00:00:17]} Nc6 {[%clk 01:31:12]} {[%emt 00:01:14]} 6. Bg5 {[%clk
01:32:33]} {[%emt 00:00:08]} e6 {[%clk 01:31:31]} {[%emt 00:00:14]} 7. Qd2
{[%clk 01:32:35]} {[%emt 00:00:14]} a6 {[%clk 01:31:29]} {[%emt 00:00:31]} 8.
O-O-O {[%clk 01:32:10]} {[%emt 00:01:27]} Bd7 {[%clk 01:31:33]} 9. f3 {[%clk
01:32:10]} {[%emt 00:00:23]} Be7 {[%clk 01:28:42]} {[%emt 00:03:23]} 10. h4
{[%clk 01:30:24]} {[%emt 00:02:12]} h6 {[%clk 01:26:19]} {[%emt 00:02:54]} 11.
Be3 {[%clk 01:29:27]} {[%emt 00:01:27]} h5 {[%clk 01:26:02]} {[%emt 00:01:31]}
12. Kb1 {[%clk 01:24:49]} {[%emt 00:04:23]} b5 {[%clk 01:24:55]} {[%emt
00:01:37]} 13. Nxc6 {[%clk 01:21:31]} {[%emt 00:03:48]} Bxc6 {[%clk 01:23:40]}
{[%emt 00:02:03]} 14. Ne2 {[%clk 01:20:37]} {[%emt 00:01:09]} d5 {[%clk
01:18:53]} {[%emt 00:05:37]} 15. Nd4 {[%clk 01:17:44]} {[%emt 00:03:00]} Bb7
{[%clk 01:18:12]} {[%emt 00:01:18]} 16. e5 {[%clk 01:16:17]} {[%emt 00:02:11]}
Nd7 {[%clk 01:18:15]} {[%emt 00:00:14]} 17. f4 {[%clk 01:15:33]} {[%emt
00:01:06]} g6 {[%clk 01:15:32]} {[%emt 00:03:13]} 18. Bd3 {[%clk 01:11:32]}
{[%emt 00:05:05]} Nc5 {[%clk 01:12:02]} {[%emt 00:03:41]} 19. Rhg1 {[%clk
01:04:46]} {[%emt 00:07:02]} Ne4 {[%clk 01:02:44]} {[%emt 00:09:46]} 20. Bxe4
{[%clk 01:02:38]} {[%emt 00:03:14]} dxe4 {[%clk 01:03:08]} 21. g4 {[%clk
01:00:39]} {[%emt 00:01:59]} hxg4 {[%clk 01:01:33]} {[%emt 00:02:37]} 22. Rxg4
{[%clk 01:00:25]} {[%emt 00:00:13]} Qc7 {[%clk 00:51:42]} {[%emt 00:10:19]} 23.
Nb3 {[%clk 00:37:31]} {[%emt 00:23:46]} Bd5 {[%clk 00:44:54]} {[%emt 00:06:56]}
24. Qf2 {[%clk 00:36:39]} {[%emt 00:01:21]} Rc8 {[%clk 00:37:16]} {[%emt
00:08:12]} 25. Qg2 {[%clk 00:31:19]} {[%emt 00:05:47]} a5 {[%clk 00:27:01]}
{[%emt 00:10:49]} 26. Rxd5 {[%clk 00:27:53]} {[%emt 00:03:52]} exd5 {[%clk
00:27:04]} {[%emt 00:00:46]} 27. Nd4 {[%clk 00:25:43]} {[%emt 00:02:53]} Bc5
{[%clk 00:21:04]} {[%emt 00:05:59]} 28. Nxb5 {[%clk 00:25:10]} {[%emt
00:01:01]} Qc6 {[%clk 00:20:25]} {[%emt 00:01:55]} 29. Bxc5 {[%clk 00:25:04]}
Qxb5 {[%clk 00:20:29]} {[%emt 00:00:20]} 30. Bd6 {[%clk 00:24:17]} {[%emt
00:01:13]} Qd7 {[%clk 00:16:25]} {[%emt 00:04:35]} 31. a3 {[%clk 00:23:01]}
{[%emt 00:01:46]} e3 {[%clk 00:06:58]} {[%emt 00:09:58]} 32. Rg5 {[%clk
00:21:21]} {[%emt 00:02:55]} d4 {[%clk 00:05:51]} {[%emt 00:00:51]} 33. f5
{[%clk 00:20:27]} {[%emt 00:02:12]} Qc6 {[%clk 00:05:34]} 34. Qe2 {[%clk
00:12:40]} {[%emt 00:08:17]} Qh1+ {[%clk 00:05:32]} {[%emt 00:00:31]} 35. Ka2
{[%clk 00:13:02]} {[%emt 00:00:49]} Qd5+ {[%clk 00:05:38]} 36. b3 {[%clk
00:12:30]} {[%emt 00:00:45]} d3 {[%clk 00:02:40]} {[%emt 00:03:28]} 37. cxd3
{[%clk 00:10:31]} {[%emt 00:02:35]} a4 {[%clk 00:02:54]} {[%emt 00:00:10]} 38.
Rg1 {[%clk 00:05:56]} {[%emt 00:05:33]} Qxb3+ {[%clk 00:03:08]} {[%emt
00:00:09]} 39. Ka1 {[%clk 00:06:13]} Rc2 {[%clk 00:03:20]} {[%emt 00:00:12]} 40.
fxg6 {[%clk 00:06:29]} {[%emt 00:00:14]} Qa2# {[%clk 00:03:41]} {[%emt
00:00:25]} 0-1

[Event "Chess Festival Groningen 2023 | A"]
[Site "Groningen, Netherlands"]
[Date "2023.12.23"]
[Round "3.26"]
[White "Bakija, Alan"]
[Black "Van Batenburg, Mees"]
[Result "0-1"]
[TimeControl "90min/40moves + 30min + 30sec/move"]
[WhiteElo "2010"]
[BlackElo "2109"]

1. Nf3 f5 2. c4 Nf6 3. g3 d6 4. Bg2 e5 5. O-O Nc6 6. Nc3 Be7 7. Rb1 a5 8. a3
O-O 9. b4 axb4 10. axb4 Qe8 11. d3 h6 12. b5 Nd8 13. c5 Ne6 14. cxd6 cxd6 15.
Nd2 f4 16. Nc4 Ng5 17. d4 Bf5 18. dxe5 dxe5 19. Nxe5 fxg3 20. f4 Qh5 21. hxg3
Nh3+ 22. Bxh3 Qxh3 23. Rf3 Rad8 24. Qb3+ Be6 25. Qb2 Ng4 26. Nxg4 Bxg4 27. Qb3+
Kh8 28. Ne4 Bxf3 29. exf3 Rf5 30. g4 Rfd5 31. Bb2 Rd2 32. Nxd2 Bc5+ 0-1

[Event "Chess Festival Groningen 2023 | A"]
[Site "Groningen, Netherlands"]
[Date "2023.12.23"]
[Round "3.27"]
[White "Ritzerveld, Noah"]
[Black "Schuricht, Emil Frederick"]
[Result "1/2-1/2"]
[TimeControl "90min/40moves + 30min + 30sec/move"]
[WhiteElo "1997"]
[BlackElo "2095"]

1. e4 {[%clk 01:30:57]} c6 {[%clk 01:30:54]} 2. d4 {[%clk 01:31:22]} d5 {[%clk
01:31:20]} {[%emt 00:00:04]} 3. Nc3 {[%clk 01:31:45]} {[%emt 00:00:05]} dxe4
{[%clk 01:31:45]} {[%emt 00:00:10]} 4. Nxe4 {[%clk 01:32:10]} {[%emt 00:00:06]}
Nf6 {[%clk 01:32:11]} 5. Nxf6+ {[%clk 01:32:32]} {[%emt 00:00:07]} exf6 {[%clk
01:32:32]} {[%emt 00:00:12]} 6. c3 {[%clk 01:32:57]} {[%emt 00:00:03]} Bd6
{[%clk 01:32:58]} {[%emt 00:00:04]} 7. Bd3 {[%clk 01:33:21]} {[%emt 00:00:09]}
O-O {[%clk 01:33:22]} {[%emt 00:00:10]} 8. Qc2 {[%clk 01:33:46]} {[%emt
00:00:08]} Re8+ {[%clk 01:33:49]} 9. Ne2 {[%clk 01:34:08]} h5 {[%clk 01:34:16]}
{[%emt 00:00:03]} 10. O-O {[%clk 01:33:15]} {[%emt 00:01:27]} h4 {[%clk
01:34:39]} {[%emt 00:00:05]} 11. h3 {[%clk 01:33:41]} {[%emt 00:00:04]} Nd7
{[%clk 01:35:03]} {[%emt 00:00:04]} 12. Be3 {[%clk 01:33:43]} {[%emt 00:00:27]}
Nf8 {[%clk 01:35:24]} {[%emt 00:00:22]} 13. c4 {[%clk 01:33:57]} {[%emt
00:00:07]} Be6 {[%clk 01:33:11]} {[%emt 00:02:37]} 14. Rad1 {[%clk 01:30:02]}
{[%emt 00:04:35]} Rc8 {[%clk 01:28:43]} {[%emt 00:04:47]} 15. Rfe1 {[%clk
01:26:48]} {[%emt 00:03:43]} Bb8 {[%clk 01:18:54]} {[%emt 00:10:20]} 16. Bf4
{[%clk 01:17:24]} {[%emt 00:09:54]} Bxf4 {[%clk 00:51:04]} {[%emt 00:28:19]} 17.
Nxf4 {[%clk 01:17:45]} {[%emt 00:00:11]} Qd6 {[%clk 00:51:28]} {[%emt
00:00:07]} 18. Qd2 {[%clk 00:54:36]} {[%emt 00:24:06]} Rcd8 {[%clk 00:47:41]}
{[%emt 00:03:48]} 19. b3 {[%clk 00:48:56]} {[%emt 00:06:09]} Bc8 {[%clk
00:38:41]} {[%emt 00:09:30]} 20. d5 {[%clk 00:40:30]} {[%emt 00:08:57]} g6
{[%clk 00:26:40]} {[%emt 00:12:32]} 21. Rxe8 {[%clk 00:31:21]} {[%emt
00:09:36]} Rxe8 {[%clk 00:27:08]} {[%emt 00:00:08]} 22. dxc6 {[%clk 00:31:13]}
{[%emt 00:00:39]} bxc6 {[%clk 00:26:48]} {[%emt 00:00:43]} 23. Bc2 {[%clk
00:27:22]} {[%emt 00:04:21]} Qe5 {[%clk 00:23:51]} {[%emt 00:03:31]} 24. Nd3
{[%clk 00:22:03]} {[%emt 00:05:45]} Qg5 {[%clk 00:21:02]} {[%emt 00:03:19]} 25.
Qxg5 {[%clk 00:21:04]} {[%emt 00:01:29]} fxg5 {[%clk 00:21:31]} {[%emt
00:00:29]} 26. Nb4 {[%clk 00:17:16]} {[%emt 00:03:52]} c5 {[%clk 00:19:33]}
{[%emt 00:02:38]} 27. Nd5 {[%clk 00:17:26]} {[%emt 00:00:09]} Kg7 {[%clk
00:18:59]} {[%emt 00:01:10]} 28. Ne3 {[%clk 00:16:07]} {[%emt 00:01:42]} Ne6
{[%clk 00:17:33]} {[%emt 00:02:28]} 29. Rd5 {[%clk 00:14:38]} {[%emt 00:01:29]}
Re7 {[%clk 00:13:48]} {[%emt 00:04:14]} 30. Rd6 {[%clk 00:12:47]} {[%emt
00:02:36]} Nd4 {[%clk 00:11:17]} {[%emt 00:02:46]} 31. Bd3 {[%clk 00:12:28]}
{[%emt 00:00:49]} Re6 {[%clk 00:09:04]} {[%emt 00:02:42]} 32. Rd5 {[%clk
00:11:22]} {[%emt 00:01:36]} Rc6 {[%clk 00:07:50]} {[%emt 00:01:44]} 33. b4
{[%clk 00:08:42]} {[%emt 00:03:09]} Ne6 {[%clk 00:05:44]} {[%emt 00:02:40]} 34.
b5 {[%clk 00:08:54]} {[%emt 00:00:16]} Rc7 {[%clk 00:06:03]} {[%emt 00:00:11]}
35. Rd6 {[%clk 00:07:50]} {[%emt 00:01:39]} Rd7 {[%clk 00:05:55]} {[%emt
00:00:33]} 36. Rxd7 {[%clk 00:07:44]} {[%emt 00:00:38]} Bxd7 {[%clk 00:06:24]}
{[%emt 00:00:03]} 37. Nd5 {[%clk 00:07:17]} {[%emt 00:00:53]} f5 {[%clk
00:05:05]} {[%emt 00:01:57]} 38. a4 {[%clk 00:07:26]} {[%emt 00:00:18]} Bc8
{[%clk 00:03:46]} {[%emt 00:01:44]} 39. a5 {[%clk 00:04:46]} {[%emt 00:03:10]}
Kf7 {[%clk 00:01:02]} {[%emt 00:03:18]} 40. a6 {[%clk 00:03:03]} {[%emt
00:02:15]} Ke8 {[%clk 00:00:48]} {[%emt 00:00:42]} 41. Be2 {[%clk 00:00:40]}
{[%emt 00:02:52]} Kd7 {[%clk 00:00:47]} {[%emt 00:00:31]} 42. Kf1 {[%clk
00:29:07]} {[%emt 00:02:00]} Kd6 {[%clk 00:21:03]} {[%emt 00:10:15]} 43. Bf3
{[%clk 00:26:26]} {[%emt 00:03:14]} Nd4 {[%clk 00:18:10]} {[%emt 00:03:19]} 44.
Bd1 {[%clk 00:11:42]} {[%emt 00:15:15]} Nxb5 {[%clk 00:15:29]} {[%emt
00:03:10]} 45. cxb5 {[%clk 00:10:49]} {[%emt 00:01:24]} Kxd5 {[%clk 00:15:51]}
{[%emt 00:00:36]} 46. Ke1 {[%clk 00:10:31]} {[%emt 00:00:22]} Kd6 {[%clk
00:08:19]} {[%emt 00:07:59]} 47. b6 {[%clk 00:10:53]} {[%emt 00:00:39]} axb6
{[%clk 00:08:29]} {[%emt 00:00:03]} 48. a7 {[%clk 00:11:19]} Bb7 {[%clk
00:08:58]} 49. Bf3 {[%clk 00:11:43]} {[%emt 00:00:14]} Kc7 {[%clk 00:09:23]} 50.
a8=Q {[%clk 00:12:07]} Bxa8 {[%clk 00:09:51]} 51. Bxa8 {[%clk 00:12:30]} {[%emt
00:00:07]} g4 {[%clk 00:08:57]} {[%emt 00:01:20]} 52. hxg4 {[%clk 00:10:14]}
{[%emt 00:02:46]} fxg4 {[%clk 00:09:12]} {[%emt 00:00:43]} 53. Be4 {[%clk
00:06:21]} {[%emt 00:04:01]} h3 {[%clk 00:04:40]} {[%emt 00:04:55]} 54. gxh3
{[%clk 00:06:06]} {[%emt 00:00:45]} gxh3 {[%clk 00:05:09]} {[%emt 00:00:12]} 55.
f4 {[%clk 00:05:05]} {[%emt 00:01:20]} Kd6 {[%clk 00:04:52]} {[%emt 00:00:51]}
56. Kf2 {[%clk 00:05:07]} {[%emt 00:00:28]} b5 {[%clk 00:04:24]} {[%emt
00:01:05]} 57. Bxg6 {[%clk 00:05:15]} {[%emt 00:00:25]} Ke6 {[%clk 00:03:15]}
{[%emt 00:01:29]} 58. Kg3 {[%clk 00:05:25]} {[%emt 00:00:29]} c4 {[%clk
00:03:12]} {[%emt 00:00:31]} 59. Kxh3 {[%clk 00:05:04]} {[%emt 00:00:41]} b4
{[%clk 00:03:21]} {[%emt 00:00:21]} 60. Bh7 {[%clk 00:04:00]} {[%emt 00:01:33]}
c3 {[%clk 00:01:15]} {[%emt 00:02:54]} 61. Kg4 {[%clk 00:02:35]} {[%emt
00:01:38]} Kd5 {[%clk 00:01:36]} {[%emt 00:00:22]} 62. Bg8+ {[%clk 00:02:44]}
{[%emt 00:00:14]} Kd4 {[%clk 00:01:51]} {[%emt 00:00:11]} 63. Bb3 {[%clk
00:02:39]} {[%emt 00:00:32]} Kd3 {[%clk 00:02:17]} {[%emt 00:00:17]} 64. f5
{[%clk 00:02:55]} {[%emt 00:00:04]} c2 {[%clk 00:02:44]} {[%emt 00:00:04]} 65.
Bxc2+ {[%clk 00:03:12]} {[%emt 00:00:10]} 1/2-1/2

[Event "Chess Festival Groningen 2023 | A"]
[Site "Groningen, Netherlands"]
[Date "2023.12.23"]
[Round "3.28"]
[White "Jacobs, Florian"]
[Black "Arnold, Rhys"]
[Result "1-0"]
[TimeControl "90min/40moves + 30min + 30sec/move"]
[WhiteElo "2218"]
[BlackElo "2053"]

1. d4 {[%clk 01:30:56]} {[%emt 00:00:06]} d5 {[%clk 01:30:40]} {[%emt
00:00:58]} 2. c4 {[%clk 01:31:18]} e6 {[%clk 01:31:01]} 3. Nc3 {[%clk
01:31:40]} a6 {[%clk 01:31:12]} {[%emt 00:00:07]} 4. cxd5 {[%clk 01:32:02]}
{[%emt 00:00:04]} exd5 {[%clk 01:31:37]} {[%emt 00:00:31]} 5. Bf4 {[%clk
01:32:11]} {[%emt 00:00:06]} Nf6 {[%clk 01:31:40]} {[%emt 00:00:21]} 6. e3
{[%clk 01:32:30]} {[%emt 00:00:07]} Bd6 {[%clk 01:31:53]} {[%emt 00:00:20]} 7.
Bg5 {[%clk 01:32:14]} {[%emt 00:00:42]} c6 {[%clk 01:31:48]} {[%emt 00:00:53]}
8. Bd3 {[%clk 01:32:29]} O-O {[%clk 01:30:01]} {[%emt 00:02:14]} 9. Nge2 {[%clk
01:29:12]} {[%emt 00:03:51]} Re8 {[%clk 01:26:41]} {[%emt 00:03:51]} 10. Qc2
{[%clk 01:28:25]} {[%emt 00:01:12]} h6 {[%clk 01:26:47]} {[%emt 00:00:24]} 11.
Bh4 {[%clk 01:28:40]} {[%emt 00:00:30]} a5 {[%clk 01:23:34]} {[%emt 00:03:27]}
12. h3 {[%clk 01:28:18]} {[%emt 00:00:55]} Be7 {[%clk 01:19:45]} {[%emt
00:04:30]} 13. f3 {[%clk 01:20:39]} {[%emt 00:07:55]} b5 {[%clk 01:12:44]}
{[%emt 00:07:37]} 14. Bf2 {[%clk 01:17:40]} {[%emt 00:03:23]} Ba6 {[%clk
01:09:13]} {[%emt 00:04:08]} 15. O-O {[%clk 01:13:50]} {[%emt 00:04:11]} Bf8
{[%clk 00:58:04]} {[%emt 00:11:41]} 16. Ng3 {[%clk 01:05:45]} {[%emt 00:08:36]}
b4 {[%clk 00:50:40]} {[%emt 00:07:56]} 17. Bxa6 {[%clk 01:05:57]} {[%emt
00:00:13]} Nxa6 {[%clk 00:49:58]} {[%emt 00:01:19]} 18. Na4 {[%clk 01:06:09]}
{[%emt 00:00:12]} c5 {[%clk 00:44:17]} {[%emt 00:06:11]} 19. dxc5 {[%clk
00:49:21]} {[%emt 00:17:20]} Rc8 {[%clk 00:37:13]} {[%emt 00:07:33]} 20. c6
{[%clk 00:35:02]} {[%emt 00:14:47]} Re6 {[%clk 00:34:35]} {[%emt 00:03:20]} 21.
Rac1 {[%clk 00:33:10]} {[%emt 00:02:27]} Qe8 {[%clk 00:33:37]} {[%emt
00:01:11]} 22. Qd3 {[%clk 00:29:51]} {[%emt 00:03:54]} Rexc6 {[%clk 00:32:37]}
{[%emt 00:01:26]} 23. Rxc6 {[%clk 00:30:13]} {[%emt 00:00:10]} Qxc6 {[%clk
00:32:32]} {[%emt 00:00:34]} 24. b3 {[%clk 00:30:33]} {[%emt 00:00:08]} Nc7
{[%clk 00:25:41]} {[%emt 00:07:23]} 25. Nf5 {[%clk 00:29:01]} {[%emt 00:02:19]}
Ne6 {[%clk 00:25:12]} {[%emt 00:00:40]} 26. Bh4 {[%clk 00:28:17]} {[%emt
00:01:14]} Qc2 {[%clk 00:18:02]} {[%emt 00:07:46]} 27. Qxc2 {[%clk 00:24:19]}
{[%emt 00:04:22]} Rxc2 {[%clk 00:18:28]} {[%emt 00:00:09]} 28. Bxf6 {[%clk
00:24:43]} {[%emt 00:00:06]} gxf6 {[%clk 00:18:46]} {[%emt 00:00:10]} 29. Rf2
{[%clk 00:25:05]} {[%emt 00:00:08]} Rc1+ {[%clk 00:18:54]} {[%emt 00:00:19]} 30.
Rf1 {[%clk 00:24:59]} {[%emt 00:00:40]} Rc2 {[%clk 00:19:18]} {[%emt 00:00:21]}
31. Rf2 {[%clk 00:25:23]} {[%emt 00:00:03]} Rc1+ {[%clk 00:19:42]} 32. Kh2
{[%clk 00:15:52]} {[%emt 00:09:50]} d4 {[%clk 00:17:34]} {[%emt 00:02:44]} 33.
exd4 {[%clk 00:16:04]} {[%emt 00:00:24]} Rd1 {[%clk 00:18:01]} 34. Nb2 {[%clk
00:16:07]} {[%emt 00:00:23]} Rc1 {[%clk 00:16:19]} {[%emt 00:02:11]} 35. Rd2
{[%clk 00:12:47]} {[%emt 00:03:54]} Nf4 {[%clk 00:15:56]} {[%emt 00:00:45]} 36.
Nd3 {[%clk 00:12:22]} {[%emt 00:00:55]} Nxd3 {[%clk 00:16:13]} {[%emt
00:00:13]} 37. Rxd3 {[%clk 00:12:51]} {[%emt 00:00:40]} Kh7 {[%clk 00:14:20]}
{[%emt 00:02:09]} 38. Rd2 {[%clk 00:10:56]} {[%emt 00:02:00]} Kg6 {[%clk
00:13:40]} {[%emt 00:01:10]} 39. g4 {[%clk 00:11:17]} {[%emt 00:00:10]} h5
{[%clk 00:12:28]} {[%emt 00:01:41]} 40. d5 {[%clk 00:11:27]} {[%emt 00:00:20]}
hxg4 {[%clk 00:08:35]} {[%emt 00:04:23]} 41. hxg4 {[%clk 00:11:48]} {[%emt
00:00:13]} Bh6 {[%clk 00:08:03]} {[%emt 00:01:04]} 42. Nxh6 {[%clk 00:11:01]}
{[%emt 00:01:48]} Kxh6 {[%clk 00:08:25]} 43. d6 {[%clk 00:11:13]} Rc8 {[%clk
00:08:49]} {[%emt 00:00:08]} 44. d7 {[%clk 00:11:22]} {[%emt 00:00:11]} Rd8
{[%clk 00:09:16]} {[%emt 00:00:04]} 45. Kg3 {[%clk 00:11:47]} {[%emt 00:00:04]}
f5 {[%clk 00:06:32]} {[%emt 00:03:13]} 46. Kf4 {[%clk 00:11:39]} {[%emt
00:00:38]} Kg6 {[%clk 00:06:35]} {[%emt 00:00:26]} 47. Ke5 {[%clk 00:11:46]}
{[%emt 00:00:37]} fxg4 {[%clk 00:06:22]} {[%emt 00:00:30]} 48. fxg4 {[%clk
00:12:09]} {[%emt 00:00:11]} 1-0